fUSD/lending_fUSD_20250226
["ID","MTS","AMOUNT","RATE_DAILY","PERIOD"]
[354591956,1740592238861,-2000.0,0.00032903,4]
[354591958,1740592238873,-151.0,0.0003299,7]
[354591960,1740592238882,-151.224309,0.0003299,7]
[354591962,1740592238891,-151.0,0.0003299,7]
[354591964,1740592238900,-151.0,0.0003299,7]
[354591966,1740592238909,-273.331292,0.0003299,7]
[354591968,1740592238918,-151.22838,0.0003299,7]
[354591970,1740592238927,-151.0,0.0003299,7]
[354591972,1740592238936,-151.0,0.0003299,7]
[354591974,1740592238946,-151.0,0.0003299,7]
[354591976,1740592238954,-24886.26940108,0.00033,2]
[354591978,1740592238963,-18926.99082356,0.00033,120]
[354591980,1740592238972,-172.395757,0.00033,7]
[354591982,1740592238980,-151.0,0.00033,7]
[354591984,1740592238989,-152.524675,0.00033,7]
[354591986,1740592238999,-2355.9586383,0.00033,30]
[354591988,1740592239008,-300.0,0.00033425,2]
[354591990,1740592239017,-150.0,0.00033425,2]
[354591992,1740592239025,-150.0,0.00033425,2]
[354591994,1740592239035,-150.0,0.00033425,2]
[354591996,1740592239043,-150.0,0.00033425,2]
[354591998,1740592239052,-6120.11160466,0.00033433,2]
[354592000,1740592239062,-7327.02759753,0.00033459,3]
[354592002,1740592239071,-1157.55106832,0.000335,2]
[354592004,1740592239081,-4927.44237551,0.00033567,2]
[354592006,1740592239090,-252.22,0.00033669,120]
[354592008,1740592239099,-2000.0,0.0003379,4]
[354592010,1740592239109,-6832.37184705,0.00034,30]
[354592012,1740592239119,-1300.0,0.0003414,5]
[354592014,1740592239130,-150.0,0.00034245,2]
[354592016,1740592239139,-255.15,0.00034247,2]
[354592018,1740592239149,-150.0,0.00034247,2]
[354592020,1740592239157,-150.0,0.00034247,2]
[354592022,1740592239166,-150.0,0.00034247,2]
[354592024,1740592239176,-150.0,0.00034247,2]
[354592026,1740592239184,-344.13,0.00034247,2]
[354592028,1740592239193,-438.8020182,0.00034299,4]
[354592030,1740592239203,-14654.0551951,0.00034322,3]
[354592032,1740592239212,-23900.0,0.00034332,2]
[354592034,1740592239221,-150.0,0.00034371,2]
[354592036,1740592239231,-4466.33836822,0.00034384,120]
[354592038,1740592239240,-2261.69469924,0.00034384,120]
[354592040,1740592239249,-1910.0,0.00034384,120]
[354592042,1740592239259,-150.0,0.00034394,2]
[354592044,1740592239269,-661.76,0.0003441,120]
[354592046,1740592239278,-1183.05,0.00034539,2]
[354592048,1740592239288,-150.0,0.00034548,10]
[354592050,1740592239297,-150.0,0.00034567,2]
[354592052,1740592239307,-7327.02759753,0.0003464,3]
[354592054,1740592239315,-489.18,0.00034649,2]
[354592056,1740592239325,-150.99,0.00034649,30]
[354592058,1740592239334,-7294.25,0.00034649,2]
[354592060,1740592239343,-1714.39,0.00034649,15]
[354592062,1740592239351,-480.77,0.00034649,10]
[354592064,1740592239362,-299.99,0.00034649,30]
[354592066,1740592239374,-9999.99,0.00034649,2]
[354592068,1740592239383,-6137.38,0.00034649,90]
[354592071,1740592239392,-329.68,0.00034649,2]
[354592073,1740592239401,-2415.59,0.00034649,2]
[354592076,1740592239411,-150.99,0.00034649,2]
[354592078,1740592239420,-360.88,0.00034649,2]
[354592080,1740592239429,-6120.11160466,0.00034667,2]
[354592082,1740592239438,-2000.0,0.00034677,4]
[354592084,1740592239447,-1900.0,0.000347,12]
[354592086,1740592239456,-151.0,0.00034702,7]
[354592088,1740592239466,-151.0,0.00034702,7]
[354592090,1740592239475,-151.0,0.00034702,7]
[354592092,1740592239484,-151.0,0.00034702,7]
[354592094,1740592239494,-150.0,0.00034739,2]
[354592096,1740592239503,-481.83792058,0.00034778,2]
[354592098,1740592239512,-7327.02759753,0.0003479,3]
[354592100,1740592239522,-263.95,0.000348,2]
[354592102,1740592239532,-7780.17686585,0.000348,120]
[354592104,1740592239541,-151.0,0.000348,7]
[354592106,1740592239551,-153.077285,0.000348,7]
[354592108,1740592239560,-151.0,0.000348,7]
[354592111,1740592239580,-169.230653,0.000348,7]
[354592113,1740592239590,-169.230653,0.000348,7]
[354592116,1740592239599,-151.0,0.000348,7]
[354592117,1740592239609,-151.351616,0.000348,7]
[354592119,1740592239619,-2900.0,0.000348,12]
[354592122,1740592239629,-7327.02759753,0.0003488,3]
[354592124,1740592239638,-21981.0827926,0.00034889,3]
[354592126,1740592239647,-8022.99914761,0.0003489,30]
[354592128,1740592239657,-151.0,0.0003489,7]
[354592130,1740592239666,-151.0,0.0003489,7]
[354592132,1740592239676,-151.0,0.0003489,7]
[354592134,1740592239685,-156.173413,0.0003489,7]
[354592136,1740592239695,-119458.36421747,0.0003489,3]
[354592139,1740592239718,-932.8828271,0.0003489,3]
[354592141,1740592239729,-77438.49808843,0.0003489,3]
[354592143,1740592239739,-56177.2,0.00034899,2]
[354592145,1740592239749,-151.0,0.00034899,7]
[354592147,1740592239759,-70139.70982811,0.000349,2]
[354592149,1740592239770,-1520.0,0.000349,2]
[354592152,1740592239793,-2172.325,0.000349,2]
[354592186,1740592240304,-365.42133537,0.000349,2]
[354592190,1740592240329,-1887.0911468,0.000349,2]
[354592192,1740592240340,-36802.45541244,0.000349,2]
[354592203,1740592240439,-453.88497005,0.000349,2]
[354592206,1740592240454,-77063.56237868,0.000349,2]
[354592208,1740592240469,-13499.999999,0.000349,2]
[354592222,1740592240588,-1359.98008677,0.000349,2]
[354592451,1740592242595,-994.52125991,0.000349,2]
[354592629,1740592244416,-965.10870092,0.000349,2]
[354592631,1740592244431,-506.17229972,0.000349,2]
[354592634,1740592244443,-1619.0442814,0.000349,2]
[354592636,1740592244455,-165646.17750403,0.000349,2]
[354592638,1740592244466,-1288.15,0.000349,2]
[354592642,1740592244495,-102532.52197431,0.000349,2]
[354592644,1740592244505,-151.0,0.000349,3]
[354592646,1740592244515,-151.0,0.000349,7]
[354592648,1740592244524,-151.0,0.000349,7]
[354592650,1740592244534,-151.0,0.000349,7]
[354592652,1740592244543,-151.0,0.000349,7]
[354592654,1740592244552,-153.490327,0.000349,7]
[354592656,1740592244562,-151.0,0.000349,7]
[354592658,1740592244571,-151.0,0.000349,7]
[354592660,1740592244580,-169.230653,0.000349,7]
[354592662,1740592244589,-169.230653,0.000349,7]
[354592664,1740592244599,-151.0,0.000349,7]
[354592666,1740592244608,-151.0,0.000349,7]
[354592668,1740592244618,-151.0,0.000349,7]
[354592670,1740592244630,-151.0,0.000349,7]
[354592672,1740592244640,-284.335662,0.000349,7]
[354592674,1740592244649,-151.0,0.000349,7]
[354592676,1740592244658,-3900.0,0.000349,12]
[354592678,1740592244668,-151.937069,0.000349,7]
[354592680,1740592244677,-151.0,0.000349,7]
[354592682,1740592244687,-151.0,0.000349,7]
[354592684,1740592244697,-181.922682,0.000349,7]
[354592686,1740592244707,-151.0,0.000349,7]
[354592688,1740592244721,-150.0,0.00034926,2]
[354592691,1740592244731,-500.0,0.00034973,5]
[354592693,1740592244740,-509.96612277,0.00034973,5]
[354592695,1740592244750,-500.0,0.00034973,5]
[354592697,1740592244759,-500.0,0.00034973,5]
[354592698,1740592244768,-500.0,0.00034973,5]
[354592701,1740592244778,-502.1981665,0.00034973,5]
[354592703,1740592244789,-500.0,0.00034973,5]
[354592705,1740592244798,-324.91605163,0.00034973,5]
[354592706,1740592244807,-207.4841729,0.00034973,5]
[354592709,1740592244817,-868.08361754,0.00034999,2]
[354592711,1740592244826,-150.0,0.00034999,30]
[354592712,1740592244835,-1000.0,0.00034999,2]
[354592714,1740592244844,-1000.0,0.00034999,2]
[354592716,1740592244854,-1000.0,0.00034999,2]
[354592718,1740592244863,-1000.0,0.00034999,2]
[354592721,1740592244876,-1000.0,0.00034999,2]
[354592723,1740592244886,-1000.0,0.00034999,2]
[354592725,1740592244896,-1000.0,0.00034999,2]
[354592727,1740592244908,-1000.0,0.00034999,2]
[354592729,1740592244918,-1000.0,0.00034999,2]
[354592731,1740592244929,-1000.0,0.00034999,2]
[354592733,1740592244939,-1000.0,0.00034999,2]
[354592735,1740592244948,-296.02188544,0.00034999,2]
[354592737,1740592244957,-234625.84318936,0.00034999,24]
[354592739,1740592244967,-205631.16626086,0.00035,15]
[354592742,1740592244986,-270.60929169,0.00035,15]
[354592806,1740592245556,-344.13,0.00034247,2]
[354592808,1740592245566,-5226.32453968,0.00035,15]
[354592849,1740592245953,-1081.08927998,0.00035,15]
[354592851,1740592245965,-10157.19676,0.00035,15]
[354592854,1740592245977,-4827.86045042,0.00035,15]
[354592862,1740592246046,-1494.35,0.00035,15]
[354592864,1740592246058,-16902.66119219,0.00035,15]
[354592877,1740592246170,-507.0360144,0.00035,15]
[354592879,1740592246182,-9621.86220901,0.00035,15]
[354592882,1740592246193,-598.696605,0.00035,15]
[354592884,1740592246205,-742.559922,0.00035,15]
[354592886,1740592246216,-2521.15645707,0.00035,15]
[354592888,1740592246227,-123899.99999822,0.00035,15]
[354596538,1740593431693,-250.0,0.00021,2]
[354596539,1740593431703,-250.0,0.00021409,2]
[354596540,1740593431712,-190.39316738,0.00021818,2]
[354596541,1740593431722,-250.0,0.00021897,2]
[354596542,1740593431732,-500.0,0.00021918,2]
[354596543,1740593431741,-500.0,0.00021918,2]
[354596544,1740593431751,-200.0,0.00021918,2]
[354596545,1740593431760,-200.0,0.00021918,2]
[354596546,1740593431770,-200.0,0.00021918,2]
[354596547,1740593431779,-409.7599822,0.00021918,2]
[354596548,1740593431795,-100.54295935,0.00021918,2]
[354596549,1740593431804,-2557.06891639,0.00021918,2]
[354596550,1740593431824,-11990.00003,0.00021918,2]
[354596551,1740593431860,-1903.58,0.00021918,2]
[354596552,1740593431916,-293.36641524,0.00021918,2]
[354596553,1740593431926,-300.0,0.00023,2]
[354596554,1740593431935,-250.0,0.000231,2]
[354596555,1740593431945,-500.0,0.00023666,4]
[354596556,1740593431954,-500.0,0.00023766,2]
[354596557,1740593431964,-1700.0,0.00024839,5]
[354596558,1740593431974,-350.0,0.00025,2]
[354596559,1740593431984,-852.70751871,0.000261,10]
[354596560,1740593431994,-247.53,0.00026849,2]
[354596561,1740593432003,-150.0,0.00027006,2]
[354596562,1740593432012,-1013.77635724,0.00027256,2]
[354596563,1740593432022,-150.0,0.00027323,2]
[354596564,1740593432031,-500.0,0.00028037,30]
[354596565,1740593432041,-300.0,0.000282,2]
[354596566,1740593432050,-150.0,0.00028966,2]
[354596567,1740593432060,-2000.0,0.00029173,5]
[354596568,1740593432069,-1145.78,0.00029598,2]
[354596569,1740593432080,-1000.0,0.0003041,2]
[354596571,1740593432090,-208.10464525,0.000309,5]
[354596573,1740593432101,-246.09,0.00031025,2]
[354596574,1740593432111,-6469.11,0.00031025,2]
[354596576,1740593432121,-500.0,0.0003115,2]
[354596578,1740593432132,-257.31,0.00031229,2]
[354596580,1740593432141,-150.66,0.00031256,2]
[354596582,1740593432152,-150.0,0.00031263,7]
[354596584,1740593432162,-461.47,0.00031338,120]
[354596586,1740593432171,-1000.0,0.00031364,2]
[354596588,1740593432182,-257.31,0.00031442,2]
[354596589,1740593432192,-250.0,0.00031486,2]
[354596590,1740593432201,-150.0,0.00031489,2]
[354596591,1740593432210,-167.38,0.00031529,2]
[354596592,1740593432220,-257.31,0.00031656,2]
[354596593,1740593432229,-321.57,0.00031706,2]
[354596594,1740593432239,-1000.0,0.00031738,2]
[354596595,1740593432248,-189.16,0.00031805,30]
[354596596,1740593432258,-1145.78,0.00031862,2]
[354596597,1740593432268,-257.31,0.0003187,2]
[354596598,1740593432277,-159.7,0.00032,30]
[354596599,1740593432286,-257.31,0.00032083,2]
[354596600,1740593432296,-257.31,0.00032297,2]
[354596601,1740593432305,-200.0,0.00032482,2]
[354596602,1740593432315,-257.31,0.00032511,2]
[354596603,1740593432324,-1000.0,0.00032547,2]
[354596604,1740593432335,-1000.0,0.00032563,2]
[354596605,1740593432345,-247.53,0.00032646,2]
[354596606,1740593432355,-1000.0,0.00032661,2]
[354596607,1740593432365,-570.94338479,0.00032664,2]
[354596608,1740593432374,-150.0,0.00032688,2]
[354596609,1740593432383,-257.31,0.00032724,2]
[354596610,1740593432393,-2000.0,0.00032751,5]
[354596611,1740593432402,-295.399,0.00032751,33]
[354596612,1740593432411,-6626.3,0.00032751,33]
[354596613,1740593432421,-177.9,0.00032764,91]
[354596614,1740593432430,-1000.0,0.00032794,2]
[354596615,1740593432440,-257.31,0.00032938,2]
[354596616,1740593432449,-1000.0,0.00032984,2]
[354596617,1740593432458,-489.0,0.00033,2]
[354596618,1740593432467,-4163.7,0.00033038,20]
[354596619,1740593432476,-150.99,0.00033038,2]
[354596620,1740593432486,-7962.05,0.00033038,2]
[354596621,1740593432495,-150.99,0.00033038,30]
[354596622,1740593432504,-9234.81785512,0.00033038,2]
[354596623,1740593432517,-765.17214488,0.00033038,2]
[354596624,1740593432527,-999.99,0.00033038,2]
[354596625,1740593432536,-1520.83,0.00033038,2]
[354596626,1740593432545,-1025.8,0.00033038,10]
[354596627,1740593432555,-489.0,0.00033151,2]
[354596628,1740593432564,-257.31,0.00033152,2]
[354596629,1740593432574,-1000.0,0.00033223,2]
[354596630,1740593432586,-150.0,0.00033362,2]
[354596631,1740593432596,-257.31,0.00033365,2]
[354596632,1740593432605,-1000.0,0.00033392,2]
[354596633,1740593432614,-307.08,0.0003341,2]
[354596634,1740593432624,-489.0,0.00033425,2]
[354596635,1740593432633,-344.13,0.00033425,2]
[354596636,1740593432642,-1000.0,0.00033468,2]
[354596637,1740593432651,-1000.0,0.00033545,2]
[354596638,1740593432660,-257.31,0.00033579,2]
[354596639,1740593432669,-1000.0,0.00033593,2]
[354596640,1740593432679,-1000.0,0.00033679,2]
[354596641,1740593432688,-2645.1296,0.00033688,2]
[354596642,1740593432697,-150.0,0.00033689,2]
[354596643,1740593432706,-489.0,0.00033699,2]
[354596644,1740593432715,-300.0,0.000337,2]
[354596645,1740593432725,-266.9752,0.00033788,2]
[354596646,1740593432734,-12853.8778,0.00033788,2]
[354596647,1740593432743,-531.9788,0.00033788,2]
[354596648,1740593432754,-1000.0,0.00033791,2]
[354596649,1740593432765,-257.31,0.00033793,2]
[354596650,1740593432775,-6263.73161905,0.00033888,2]
[354596651,1740593432786,-404.53037187,0.00033888,2]
[354596652,1740593432817,-304.64820577,0.00033888,2]
[354596653,1740593432831,-333.98536133,0.00033888,2]
[354596662,1740593437589,-150.0,0.00033661,2]
[354596663,1740593437599,-5721.04845165,0.00033888,2]
[354596664,1740593437612,-269.0,0.00033888,2]
[354596665,1740593437644,-10603.05599033,0.00033888,2]
[354596666,1740593437653,-1860.587,0.00033906,2]
[354596667,1740593437663,-1397.1313,0.00033906,2]
[354596668,1740593437672,-150.0,0.00033912,2]
[354596669,1740593437681,-1000.0,0.00033936,2]
[354596670,1740593437690,-1000.0,0.00033946,2]
[354596671,1740593437699,-150.0,0.0003395,2]
[354596672,1740593437708,-1000.0,0.00033961,2]
[354596673,1740593437718,-489.0,0.00033973,2]
[354596674,1740593437727,-257.31,0.00034006,2]
[354596675,1740593437736,-1145.78,0.00034125,2]
[354596676,1740593437745,-344.13,0.00034178,2]
[354596677,1740593437755,-257.31,0.0003422,2]
[354596678,1740593437764,-1000.0,0.00034229,2]
[354596679,1740593437773,-172.548647,0.00034296,30]
[354596680,1740593437783,-329.1015137,0.00034299,4]
[354596681,1740593437792,-1000.0,0.00034313,2]
[354596682,1740593437802,-150.0,0.00034354,2]
[354596683,1740593437811,-1000.0,0.00034417,2]
[354596684,1740593437821,-313.1237,0.00034421,2]
[354596685,1740593437831,-150.0,0.00034428,2]
[354596686,1740593437842,-257.31,0.00034434,2]
[354596687,1740593437851,-150.0,0.00034454,2]
[354596688,1740593437860,-150.0,0.00034503,2]
[354596689,1740593437869,-489.0,0.00034521,2]
[354596690,1740593437878,-150.0,0.00034548,2]
[354596691,1740593437888,-200.0,0.00034554,120]
[354596692,1740593437897,-1000.0,0.00034566,2]
[354596693,1740593437906,-151.15488278,0.00034569,2]
[354596694,1740593437915,-150.0,0.00034571,2]
[354596695,1740593437924,-150.0,0.00034601,2]
[354596696,1740593437933,-150.0,0.00034614,2]
[354596698,1740593437942,-257.31,0.00034647,2]
[354596700,1740593437951,-1000.0,0.00034697,2]
[354596701,1740593437961,-150.0,0.00034698,2]
[354596702,1740593437970,-150.0,0.00034728,2]
[354596703,1740593437979,-248.13904026,0.00034745,2]
[354596704,1740593437988,-1000.0,0.00034769,2]
[354596705,1740593437997,-1747.75095264,0.00034792,2]
[354596706,1740593438007,-2886.1977,0.000348,2]
[354596707,1740593438016,-1289.1229,0.000348,2]
[354596708,1740593438025,-1232.5884,0.000348,2]
[354596709,1740593438034,-1096.7287,0.000348,2]
[354596710,1740593438043,-806.0906,0.000348,2]
[354596711,1740593438053,-751.7065,0.000348,2]
[354596712,1740593438062,-1000.0,0.000348,2]
[354596713,1740593438072,-500.0,0.000348,12]
[354596714,1740593438081,-2500.0,0.000348,2]
[354596715,1740593438093,-150.0,0.00034813,2]
[354596716,1740593438105,-150.0,0.00034841,2]
[354596717,1740593438114,-150.0,0.00034844,2]
[354596718,1740593438123,-257.31,0.00034861,2]
[354596719,1740593438134,-803.45873212,0.00034891,2]
[354596720,1740593438144,-2500.0,0.00034892,5]
[354596721,1740593438153,-2500.0,0.00034892,5]
[354596722,1740593438162,-2916.79391065,0.00034899,2]
[354596723,1740593438171,-1137.00651125,0.00034899,7]
[354596724,1740593438184,-2091.1798,0.000349,2]
[354596725,1740593438193,-500.0,0.000349,2]
[354596726,1740593438202,-45590.20665126,0.000349,2]
[354596727,1740593438214,-5216.32132093,0.000349,2]
[354596728,1740593438225,-11892.72271579,0.000349,2]
[354596729,1740593438254,-340.17893787,0.000349,2]
[354596730,1740593438264,-520.14241178,0.000349,2]
[354596731,1740593438283,-22254.22146237,0.000349,2]
[354596732,1740593438292,-1000.0,0.000349,2]
[354596733,1740593438302,-13005.04650872,0.000349,2]
[354596734,1740593438312,-385.36424049,0.000349,2]
[354596735,1740593438323,-865.69,0.000349,2]
[354596736,1740593438335,-3051.31901214,0.000349,2]
[354596737,1740593438346,-1330.55565,0.000349,2]
[354596738,1740593438369,-3451.34324685,0.000349,2]
[354596739,1740593438380,-14223.5240418,0.000349,2]
[354596740,1740593438389,-1000.0,0.000349,12]
[354596741,1740593438398,-1000.0,0.00034928,2]
[354596742,1740593438407,-1000.0,0.00034931,2]
[354596743,1740593438416,-1747.75095259,0.00034933,2]
[354596744,1740593438426,-150.0,0.00034971,2]
[354596745,1740593438435,-232.08368698,0.0003498,3]
[354596746,1740593438444,-1166.61644,0.00034999,19]
[354596747,1740593438453,-3064.0,0.00035,5]
[354596748,1740593438462,-56540.40757199,0.00035,15]
[354596756,1740593439645,-318.72088959,0.000349,2]
[354596757,1740593439655,-720.67344272,0.00035,15]
[354596758,1740593439771,-86321.0,0.00035,15]
[354596759,1740593439782,-13253.22423378,0.00035,15]
[354596760,1740593439894,-4323.456,0.00035,15]
[354596761,1740593440021,-5785.06454997,0.00035,15]
[354596762,1740593440059,-649.84901329,0.00035,15]
[354596763,1740593440070,-844.34473846,0.00035,15]
[354596764,1740593440081,-927.740244,0.00035,15]
[354596839,1740593442720,-4435.59241927,0.00035,15]
[354596928,1740593443441,-302.797386,0.00035,15]
[354596930,1740593443452,-5013.44467986,0.00035,15]
[354596932,1740593443463,-345600.0,0.00035,15]
[354596938,1740593445712,-11733.80002318,0.00035,15]
[354596939,1740593445871,-693.28612731,0.00035,15]
[354596940,1740593445883,-38089.48249129,0.00035,15]
[354596941,1740593445905,-928.23859925,0.00035,15]
[354596942,1740593445917,-567.56250872,0.00035,15]
[354596945,1740593705660,205.0,1.1e-06,30]
[354596946,1740593724294,-2665.0755,0.00033688,30]
[354596947,1740593724316,-266.9752,0.00033788,2]
[354596948,1740593724339,-31080.4308,0.00033788,2]
[354596949,1740593724360,-3887.7554,0.00033788,2]
[354596950,1740593724380,-250.0,0.00034043,2]
[354596951,1740593724401,-246.8261352,0.00034299,4]
[354596952,1740593724421,-1033.96,0.00034364,2]
[354596953,1740593724441,-1659.46,0.00034374,2]
[354596954,1740593724462,-250.0,0.0003445,2]
[354596955,1740593724483,-1000.0,0.000346,7]
[354596956,1740593724502,-1000.0,0.000348,2]
[354596957,1740593724522,-5739.3646,0.000348,2]
[354596958,1740593724542,-36312.8427,0.000348,2]
[354596959,1740593724563,-500.0,0.000348,2]
[354596960,1740593724587,-208.10464525,0.000349,7]
[354596961,1740593724608,-723.5508,0.000349,2]
[354596962,1740593724628,-5188.171065,0.00034995,2]
[354596963,1740593724649,-972.18037,0.00034999,19]
[354596964,1740593724671,-49216.28428328,0.00035,15]
[354596965,1740593724692,-1500.000001,0.00035,15]
[354596966,1740593724714,-300.32236525,0.00035,5]
[354596967,1740593724734,-181.60955483,0.00035,2]
[354596968,1740593724755,-200.0,0.00035,2]
[354596969,1740593724776,-750.0,0.00035,2]
[354596970,1740593724797,-638.0,0.00035,2]
[354596971,1740593724821,-965.0,0.00035,2]
[354596972,1740593724842,-29264.08658019,0.00035,2]
[354596973,1740593751790,256.0,0.00015,30]
[354596974,1740593760805,256.0,0.00023,30]
[354596975,1740593782069,278.0,0.00023,25]
[354596976,1740593785175,278.0,0.00023,25]
[354596977,1740593792387,278.0,0.00023,26]
[354596978,1740593800773,218.0,0.00023,27]
[354596979,1740593802947,218.0,0.00023,27]
[354596980,1740593823654,218.0,0.00023,27]
[354596981,1740593824614,218.0,0.00023,27]
[354596982,1740593826051,218.0,0.00023,27]
[354596983,1740593900314,298.84683256,0.000231,22]
[354596986,1740594308185,176000.0,0.00015,2]
[354596989,1740594325950,-256.0,0.00025,30]
[354596990,1740594325980,-256.0,0.00025,30]
[354596991,1740594326009,-159.7,0.00032,30]
[354596992,1740594326038,-173.39,0.00034155,120]
[354596993,1740594326065,-150.99,0.00034299,30]
[354596994,1740594326098,-299.99,0.00034385,30]
[354596995,1740594326126,-40482.88972829,0.000345,120]
[354596996,1740594326154,-236.319,0.00034995,40]
[354596997,1740594326182,-5301.04,0.00034995,40]
[354596998,1740594326212,-25860.37626455,0.00035092,30]
[354596999,1740594326241,-341.16791234,0.000351,30]
[354597000,1740594326272,-461.47,0.00035256,120]
[354597001,1740594326309,-10000.0,0.000356,120]
[354597002,1740594326340,-5499.85343168,0.000356,60]
[354597003,1740594326368,-150.0,0.00035615,30]
[354597004,1740594326399,-858.85,0.00035616,120]
[354597005,1740594326463,-1568.96,0.00035616,120]
[354597006,1740594326509,-2000.0,0.00035616,30]
[354597007,1740594327205,-150.0,0.00035752,30]
[354597008,1740594327238,-45654.0,0.00035863,120]
[354597009,1740594327269,-150.0,0.00035889,30]
[354597010,1740594327366,-150.0,0.00036026,30]
[354597011,1740594327396,-150.0,0.00036163,30]
[354597012,1740594327475,-150.0,0.000363,30]
[354597013,1740594327504,-208.25249058,0.00036437,30]
[354597014,1740594327573,-911.67580778,0.000365,120]
[354597015,1740594327643,-500.0,0.00036798,120]
[354597016,1740594327712,-2077.0,0.00037,117]
[354597017,1740594327744,-349.83440685,0.000372,103]
[354597018,1740594327777,-349.83440685,0.000372,103]
[354597019,1740594327807,-349.83440685,0.000372,103]
[354597020,1740594327839,-349.83440685,0.000372,103]
[354597021,1740594327910,-349.83440685,0.00037434,105]
[354597022,1740594328000,-500.0,0.00037607,120]
[354597023,1740594328032,-500.0,0.00037783,120]
[354597024,1740594328104,-200.0,0.0003793,120]
[354597025,1740594328135,-2000.0,0.00038049,120]
[354597026,1740594328166,-10007.98199965,0.0003808,120]
[354597027,1740594328196,-205.0,0.0003808,30]
[354597028,1740594328301,-500.0,0.00038365,120]
[354597029,1740594328367,-173.39,0.00038633,120]
[354597030,1740594328396,-377.46614524,0.00038712,30]
[354597031,1740594328428,-858.85,0.00038854,120]
[354597032,1740594328495,-60763.29575977,0.00038904,30]
[354597033,1740594328524,-377.46614524,0.00038904,30]
[354597034,1740594328556,-208.638,0.00039,120]
[354597035,1740594328588,-10000.0,0.00039,120]
[354597036,1740594328617,-2003.54,0.00039,30]
[354597037,1740594328646,-2909.24012996,0.00039,117]
[354597038,1740594328676,-205.0,0.0003907,30]
[354597039,1740594328706,-377.46614524,0.00039096,30]
[354597040,1740594328738,-461.47,0.00039173,120]
[354597041,1740594328800,-377.46614524,0.00039288,30]
[354597042,1740594328860,-165.50043655,0.00039452,30]
[354597043,1740594328889,-60763.29575977,0.00039452,30]
[354597044,1740594328918,-60763.29575977,0.00039452,30]
[354597045,1740594328947,-60763.29575977,0.00039452,30]
[354597046,1740594328973,-510.30294155,0.00039452,30]
[354597047,1740594329001,-510.30294155,0.00039452,30]
[354597048,1740594329030,-377.46614524,0.00039452,30]
[354597049,1740594329057,-3010.0,0.000395,120]
[354597050,1740594329087,-377.46614524,0.00039644,30]
[354597051,1740594329145,-377.46614524,0.00039836,30]
[354597052,1740594329173,-4999.999999,0.00039849,120]
[354597053,1740594329200,-500.0,0.00039931,120]
[354597054,1740594329227,-2000.0,0.00039931,120]
[354597055,1740594329255,-500.0,0.00039931,120]
[354597056,1740594329283,-500.0,0.00039931,120]
[354597057,1740594329312,-200.0,0.00039931,120]
[354597058,1740594329344,-100000.0,0.0004,30]
[354597059,1740594329464,-201607.09373633,0.0004,120]
[354597060,1740594329495,-2303.97916708,0.0004,120]
[354597061,1740594329524,-300.0,0.0004,120]
[354597062,1740594329550,-180.0,0.0004,120]
[354597063,1740594329581,-15667.69688096,0.0004,120]
[354597064,1740594329610,-461.85,0.0004,120]
[354597065,1740594329639,-307.76,0.0004,120]
[354597066,1740594329667,-4571.6,0.0004,117]